Cogmind - Beta 15 @@@ ROGUE MODE // 2025.10.20 @ 22:44:06 Player: Finestep Result: Self-destructed Performance ------------- Evolutions (3) 1500 Regions Visited (8) 1600 Robots Destroyed (244) 1220 Value Destroyed (8769) 8769 Prototype IDs (19) 380 Alien Tech Used (1) 200 Bonus (3364) 3364 TOTAL SCORE: 17033 Bonus ------- High Alert Combat Kills 2543 Follower Combat Kills 338 Entered Garrisons 200 Acquired ECA 300 Friendly Fire -17 Cogmind --------- Core Integrity 405/700 Matter 151/300 Energy 290/290 System Corruption 21% Temperature Cool (0) Movement Core (1400) Ox27 Location -7/Lower Caves Parts ------- > --- POWER (1) -------- Reinforced Deuterium Engine > --- PROPULSION (4) --- (None) > --- UTILITY (5) ------ Advanced Heat Sink High-capacity Storage Unit Improved Sensor Array Improved Signal Interpreter Improved Medium Armor Plating > --- WEAPON (4) ------- Heavy Machine Gun Missile Launcher Heavy Missile Launcher > --- INVENTORY (20) --- Light Angular Momentum Engine Coolant Injector Large Matter Pod (150) High-capacity Matter Pod (200) Encrypted Comm Array Core Analyzer Weapon Cycler Hardened Light Armor Plating Hardened Heavy Armor Plating Graphene Brace Advanced Thermal Defense Suite Improved Shield Generator Hacking Suite Hacking Suite High-powered Tractor Beam Antimatter Cannon Antimatter Cannon Antimatter Cannon EMP Blaster Peak State ------------ > --- POWER ------------ Micro Nuclear Core > --- PROPULSION ------- Medium Treads Medium Treads Medium Treads Improved Medium Treads > --- UTILITY ---------- Advanced Heat Sink High-capacity Storage Unit Machine Analyzer IFF Parser Layered Medium Armor Plating > --- WEAPON ----------- Precision Beam Rifle Precision Beam Rifle Precision Beam Rifle > --- INVENTORY -------- Light Angular Momentum Engine Advanced Treads Advanced Treads Coolant Injector Large Matter Pod High-capacity Matter Pod Structural Scanner Transport Network Coupler Hardened Heavy Armor Plating Improved Medium Armor Plating Hacking Suite Hacking Suite High-powered Tractor Beam Drone Bay Flak Cannon Heavy Flak Cannon Missile Launcher Missile Launcher Heavy Mace [Rating: 58] Favorites ----------- Power Micro Nuclear Core Engine Deuterium Engine Power Core Micro Nuclear Core Propulsion Light Treads Treads Light Treads Leg Aluminum Leg Wheel Wheel Hover Unit Gravmag System Utility High-capacity Storage Unit Device Advanced Heat Sink Storage High-capacity Storage Unit Processor Advanced Targeting Computer Hackware Hacking Suite Protection Light Armor Plating Weapon Improved Assault Rifle Energy Gun Precision Beam Rifle Energy Cannon Heavy Particle Cannon Ballistic Gun Improved Assault Rifle Ballistic Cannon Antimatter Cannon Launcher Improved Grenade Launcher Special Weapon Mining Laser Impact Weapon Maul Build | -11 -10 -9 -8 -8 -8 -7 -7 -7 ------- Run | Yrd Mat Mat Mat Gar Mat Fac Low Low Slots Evolved 6 | . . 2 2 . . 2 . . Power . | . . . . . . . . . Propulsion 2 | . . 1 1 . . . . . Utility 3 | . . 1 1 . . 1 . . Weapon 1 | . . . . . . 1 . . Parts Attached 149 | 8 5 38 19 23 21 27 6 2 Power 12 | 1 1 2 2 3 2 1 . . Engine 7 | 1 1 1 2 1 . 1 . . Core 5 | . . 1 . 2 2 . . . Reactor . | . . . . . . . . . Propulsion 58 | 2 2 17 12 8 8 5 4 . Treads 46 | . 2 13 12 8 6 5 . . Leg 9 | 2 . 4 . . 2 . 1 . Wheel 2 | . . . . . . . 2 . Hover 1 | . . . . . . . 1 . Flight . | . . . . . . . . . Utility 43 | 3 1 8 4 8 6 12 1 . Device 20 | 2 . 4 1 3 2 7 1 . Storage 4 | 1 1 1 . . 1 . . . Processor 5 | . . . 1 1 . 3 . . Hackware 1 | . . . . . 1 . . . Protection 13 | . . 3 2 4 2 2 . . Artifact . | . . . . . . . . . Weapon 36 | 2 1 11 1 4 5 9 1 2 Energy Gun 6 | 1 . 2 . . . 3 . . Energy Cannon 3 | . . 2 . 1 . . . . Ballistic Gun 12 | 1 1 6 . 1 1 1 . 1 Ballistic Cannon 6 | . . 1 . . 3 1 1 . Launcher 6 | . . . 1 . 1 3 . 1 Special Weapon 1 | . . . . 1 . . . . Impact Weapon 2 | . . . . 1 . 1 . . Slashing Weapon . | . . . . . . . . . Piercing Weapon . | . . . . . . . . . Special Melee Weapon . | . . . . . . . . . Unidentified Prototypes 6 | . . 1 . . 1 3 1 . Corrupted Parts 4 | . . . . . . 3 1 . System Corruption 21 | . . . . . . 19 2 . Parts Lost 36 | . 2 8 1 10 5 7 1 2 Power 5 | . 1 1 . 2 1 . . . Propulsion 14 | . . 3 . 3 2 3 1 2 Utility 13 | . . 4 1 3 2 3 . . Weapon 4 | . 1 . . 2 . 1 . . Highest Loss Streak 3 | . 1 3 1 3 3 3 1 2 To Critical Strikes . | . . . . . . . . . Average Backups 17 | 3 13 16 19 19 19 18 18 19 Power . | . . . 1 . 1 1 1 1 Propulsion 2 | 1 3 3 3 1 . 1 . . Utility 9 | . 2 6 9 11 12 11 12 13 Weapon 5 | 1 6 5 5 5 4 4 4 4 Tool/Special . | . . . . . . . . . Unused Backups 30 | . 1 7 4 1 2 4 . 11 Power 2 | . . 1 . . . . . 1 Propulsion 3 | . . 2 1 . . . . . Utility 17 | . . 1 2 1 2 4 . 7 Weapon 7 | . 1 3 1 . . . . 2 Tool/Special 1 | . . . . . . . . 1 Average Slot Usage (%) 98 | . 96 97 99 99 98 98 97 98 Engine 6 | . 14 9 9 4 . . 7 7 Core 2 | . . 1 . 4 7 6 . . Treads 28 | . 26 24 36 35 34 28 16 13 Leg 2 | . 1 7 . . . . 2 . Device 11 | . 14 12 9 8 5 13 14 14 Storage 9 | . 14 11 9 9 11 7 7 7 Processor 4 | . . . 8 9 2 7 7 7 Protection 7 | . . 8 9 9 15 7 7 7 Energy Gun 5 | . 10 2 . . . 16 7 3 Energy Cannon 1 | . . 1 . 4 . . . . Ballistic Gun 11 | . 14 17 17 11 1 1 7 10 Ballistic Cannon 3 | . . . . . 15 2 12 12 Peak Build Rating 58 | 7 8 19 30 36 38 58 56 54 Average Rating 29 | 5 7 15 26 30 32 51 53 53 On Entrance 25 | . 7 7 18 27 32 38 48 54 Naked Turns . | . . . . . . . . . Heaviest Build 89 | 14 29 59 63 67 72 84 87 89 Greatest Support 114 | 20 40 60 92 89 93 114 70 20 Greatest Overweight (x) 8 | 1 . 1 . . 1 1 8 4 Average Overweight (x) . | . . . . . . . 5 4 Largest Inventory Capacity 20 | 8 15 20 20 20 20 20 20 20 Average Capacity 18 | 7 14 17 20 20 20 20 20 20 Most Carried 20 | 6 15 20 20 20 20 20 20 20 Average Carried 18 | 3 13 16 19 19 19 19 19 20 Final Capacity 20 | 8 15 20 20 20 20 20 20 20 Final Carried 20 | 5 15 20 20 20 19 19 20 20 Class Distribution -------------------- 48% | Scavenger-Mutant 30% | Mutant 11% | Scavenger-Skirmisher 4% | Scavenger-Tank Dominant Class ---------------- Mutant | -10/Materials Scavenger-Mutant | -9/Materials Mutant | -8/Materials Scavenger-Mutant | -8/Garrison Scavenger-Mutant | -8/Materials Mutant | -7/Factory Scavenger-Skirmisher | -7/Lower Caves Scavenger-Skirmisher | -7/Lower Caves Resources | -11 -10 -9 -8 -8 -8 -7 -7 -7 ----------- Run | Yrd Mat Mat Mat Gar Mat Fac Low Low Matter Collected 6308 | 291 265 1031 845 906 1593 875 478 24 Remotely 516 | . . . . . 362 112 42 . Salvage Created 9824 | 124 502 2246 1899 1727 1563 1346 417 . Parts 477 | 12 26 137 99 92 66 40 5 . Haulers Intercepted 14 | . 2 5 3 . 4 . . . Recyclers Shooed 12 | 1 3 4 . . 2 . 2 . Parts Field Recycled . | . . . . . . . . . Retrieved Matter . | . . . . . . . . . Parts Self-Destructed 7 | . . . . . . . 7 . Prevented 1 | . . . . . . . . 1 Kills | -11 -10 -9 -8 -8 -8 -7 -7 -7 ------- Run | Yrd Mat Mat Mat Gar Mat Fac Low Low Combat Hostiles Destroyed 177 | . 10 38 27 35 39 24 2 2 Melee 2 | . . . . 1 . 1 . . Guns 94 | . 10 33 23 16 . 10 2 . Cannons 61 | . . 5 . 13 36 7 . . AOE 15 | . . . 4 4 3 2 . 2 Classes Destroyed 20 | 2 4 5 2 2 2 2 . 1 Worker 8 | . . 2 5 . . 1 . . Builder 5 | . . 3 1 . 1 . . . Tunneler 3 | 2 . . . . 1 . . . Hauler 14 | . 2 5 3 . 4 . . . Recycler 17 | 1 1 2 3 . 5 5 . . Mechanic 5 | . . 1 1 . 2 1 . . Operator 4 | . . 2 2 . . . . . Watcher 11 | . 3 5 1 1 1 . . . Swarmer 22 | . 6 3 2 3 2 4 2 . Cutter 2 | . . . . . . 2 . . Grunt 92 | . 4 25 18 16 23 6 . . Brawler 6 | . . . 1 . 5 . . . Duelist 5 | . . . . . 3 2 . . Protector 3 | . . . . . 3 . . . Sentry 28 | . . 10 5 8 3 2 . . Specialist 4 | . . . . 2 . 2 . . Hunter 5 | . . . 1 3 . 1 . . Programmer 7 | . . . . 3 . 4 . . Heavy 1 | . . . . . . 1 . . Decomposer 3 | . . . . . . . 3 . Packrat 3 | . . . . . . . 3 . Thief 2 | . . . . . . . . 2 Best Kill Streak 11 | 3 4 5 11 4 11 5 1 2 Combat Bots Only 8 | . 3 5 6 4 8 4 1 2 Max Kills in Single Turn 3 | 1 2 2 2 3 2 2 1 2 Gunslinging 1 | . . 1 . 1 . . . . Exploded 3 | . . . 2 3 2 2 . 2 Melee 1 | . . . . 1 . 1 . . Uniques/NPCs Destroyed . | . . . . . . . . . Combat | -11 -10 -9 -8 -8 -8 -7 -7 -7 -------- Run | Yrd Mat Mat Mat Gar Mat Fac Low Low Hostile Shots Fired 909 | . 56 175 148 218 89 209 8 6 Missed 265 | . 15 51 41 71 22 63 1 1 Hits 644 | . 41 124 107 147 67 146 7 5 Melee 16 | . . . . . 6 5 . 5 Projectile 628 | . 41 124 107 147 61 141 7 . AOE 3 | . . . . . . 3 . . Critical Strikes 31 | . . 7 5 7 6 6 . . Part Disruptions 1 | . . . . . . 1 . . Damage Taken 9257 | . 548 1573 1264 1885 1220 2535 89 143 Core 855 | . 103 237 73 108 39 295 . . Absorbed by Shields 827 | . . . 487 296 . 44 . . Redirected to Shielding 9 | . . . . . 9 . . . Regen/Repaired (Parts) 316 | . . 48 137 . . 131 . . Core Remaining (%) 64 | 100 58 40 . . 60 . . . Volleys Fired 646 | 11 66 161 99 113 93 71 25 7 Largest 3 | 2 2 2 2 2 2 3 3 2 Hottest 183 | 70 70 90 46 100 81 183 124 75 Shots Fired 1316 | 22 132 318 195 212 178 181 65 13 Gun 971 | 22 132 288 192 150 . 138 47 2 Cannon 320 | . . 30 . 54 175 40 18 3 Launcher 24 | . . . 3 7 3 3 . 8 Special 1 | . . . . 1 . . . . Kinetic 935 | 11 66 245 192 150 175 50 42 4 Thermal 354 | 11 66 70 . 55 . 128 23 1 Explosive 23 | . . . 3 7 3 2 . 8 Electromagnetic 4 | . . 3 . . . 1 . . Robot Hit Streak 31 | 5 7 21 24 31 9 18 8 . Robot Miss Streak 8 | 2 6 4 2 3 8 7 3 2 Penetration Max . | . . . . . . . . . Secondary Targets 14 | . . 6 3 4 . 1 . . Max Gunslinging Chain 1 | . . 1 1 1 . 1 . . Shots Hit Robots 899 | 14 78 231 154 124 154 116 28 . Core Hits 534 | 6 28 93 76 61 209 44 12 5 Critical Kills 3 | . . . . 3 . . . . Critical Parts Destroyed 7 | . . 1 1 1 . 4 . . Critical Strikes 35 | 1 4 5 1 4 . 15 5 . Burn 24 | 1 4 4 . . . 10 5 . Destroy 4 | . . 1 1 2 . . . . Blast 1 | . . . . . . 1 . . Smash 6 | . . . . 2 . 4 . . Melee Attacks 44 | . . . . 17 1 26 . . Impact 44 | . . . . 17 1 26 . . Slashing . | . . . . . . . . . Piercing . | . . . . . . . . . Sneak Attacks 5 | . . . . . 1 4 . . Combat Hostiles . | . . . . . . . . . Follow-up Attacks . | . . . . . . . . . Damage Inflicted 19397 | 152 851 3432 3095 3093 4029 3666 680 399 Guns 9446 | 152 851 3021 2320 1249 . 1483 370 . Cannons 5936 | . . 406 . 956 3411 853 310 . Explosions 3105 | . . . 775 759 540 632 . 399 Melee 905 | . . . . 129 78 698 . . Ramming 5 | . . 5 . . . . . . Kinetic 11198 | 52 291 2433 2320 1249 3411 947 495 . Thermal 4772 | 100 560 981 . 956 . 1990 185 . Explosive 2473 | . . . 775 759 540 . . 399 Electromagnetic 44 | . . 13 . . . 31 . . Impact 905 | . . . . 129 78 698 . . Slashing . | . . . . . . . . . Piercing . | . . . . . . . . . Highest Corruption 21 | . . . . 2 4 19 21 21 Average Corruption 9 | . . . . 1 2 14 20 21 Corruption Purged 5 | . . . . . . 5 . . Corruption Blocked . | . . . . . . . . . Effects 121 | . . . . 11 19 24 56 11 Message Errors 26 | . . . . 1 9 4 10 2 Matter Fused 24 | . . . . 3 2 6 11 2 Heat Flow Errors 15 | . . . . 2 1 3 8 1 Energy Discharges 20 | . . . . 2 4 2 8 4 Parts Rejected 1 | . . . . . 1 . . . Parts Fused 2 | . . . . 1 . . 1 . Data Loss (minor) 13 | . . . . . 1 3 9 . Data Loss (major) 4 | . . . . 1 . 1 2 . Misfires 4 | . . . . 1 . 1 . 2 Alerts 6 | . . . . . . . 6 . Weapon Failures 6 | . . . . . 1 4 1 . Overload Shots . | . . . . . . . . . Overflow Damage 652 | . . . 74 66 18 418 58 18 Projectiles 77 | . . . . 15 . 4 58 . Explosions 143 | . . . 74 11 . 40 . 18 Melee 432 | . . . . 40 18 374 . . Knockbacks 86 | . . . . 1 70 12 3 . Impact 7 | . . . . 1 . 6 . . Kinetic 68 | . . . . . 59 6 3 . Secondary 11 | . . . . . 11 . . . Self-Inflicted Damage 395 | . . . 95 57 . 142 . 101 Shots 11 | . . . 2 3 . 3 . 3 Rammed 2 | . 1 1 . . . . . . Targets Rammed 2 | . 1 1 . . . . . . Kicked . | . . . . . . . . . Crushed . | . . . . . . . . . Highest Temperature 468 | 124 241 233 18 430 364 468 250 197 Average Temperature 75 | 64 59 40 8 91 97 104 96 115 Received Heat Transfer 3110 | . 150 882 524 576 585 393 . . Effects 9 | . . . . 4 1 2 2 . Shutdowns 1 | . . . . 1 . . . . Interference 5 | . . . . 3 . . 2 . Short Circuit 3 | . . . . . 1 2 . . Siege Activations . | . . . . . . . . . Martial Activations . | . . . . . . . . . Shielding Activations . | . . . . . . . . . Robots Disrupted . | . . . . . . . . . Combat Hostiles . | . . . . . . . . . Robots Corrupted 8 | . . . . 1 1 6 . . Combat Hostiles 4 | . . . . 1 . 3 . . Parts Fried 7 | . . . . . . 7 . . Impact Corruptions 18 | . . . . 2 1 15 . . Robots Melted 1 | . . . . . . 1 . . Combat Hostiles 1 | . . . . . . 1 . . Parts Melted 18 | 1 1 5 . 3 . 8 . . Heat Transferred 10281 | 370 1961 2220 . 1332 . 3621 777 . Parts Sabotaged . | . . . . . . . . . Parts Stolen 3 | . . . . . . . . 3 Parts Stripped . | . . . . . . . . . Power Chain Reactions . | . . . . . . . . . Alert | -11 -10 -9 -8 -8 -8 -7 -7 -7 ------- Run | Yrd Mat Mat Mat Gar Mat Fac Low Low Maximum Alert Level 5 | . . 2 2 5 4 3 . . Low Security (%) 34 | 100 100 64 24 . . . . . Level 1 13 | . . 30 42 2 . . . . Level 2 21 | . . 5 32 21 . 76 . . Level 3 12 | . . . . 24 35 23 . . Level 4 13 | . . . . 32 64 . . . Level 5 3 | . . . . 18 . . . . High Security . | . . . . . . . . . Max Security . | . . . . . . . . . Peak Influence 2101 | 10 70 467 614 2101 1503 789 . . Initial 1023 | . . . 33 393 1023 611 . . Average 535 | 1 9 154 336 1105 1215 581 . . Influence Increases 6388 | 15 283 1192 1081 1868 1052 847 50 . Destroy 0b10 Robot/C 3640 | . 200 760 540 880 740 480 40 . Destroy 0b10 Robot/NC 375 | 15 30 100 80 15 90 35 10 . Destroy Leader 678 | . 50 220 148 20 140 100 . . Allied During Kill 63 | . . . . 58 5 . . . Successful Hack 167 | . 3 17 76 40 7 24 . . Select Force Hacks 90 | . . 30 60 . . . . . Disable Machine 240 | . . . 75 60 15 90 . . Anti-Garrison Action 700 | . . . . 700 . . . . Destroy Structure 225 | . . 5 42 80 25 73 . . Partial Spotted 15 | . . . 15 . . . . . Lose Combat Pursuer 195 | . . 60 45 15 30 45 . . Influence Decreases 6388 | 15 283 1112 556 372 1808 1409 774 59 Entered New Map 2373 | . . . 47 212 1078 734 290 12 Time Decay 2936 | 15 224 592 499 . 490 595 474 47 Lost Part 320 | . 10 70 10 100 50 70 10 . Lost Ally 110 | . . . . 60 40 10 . . Purge Threat 649 | . 49 450 . . 150 . . . Squads Dispatched 29 | . 1 5 5 . 6 12 . . Investigation 11 | . . 3 3 . . 5 . . Extermination 3 | . . . . . . 3 . . Reinforcement 8 | . 1 2 2 . 1 2 . . Assault 7 | . . . . . 5 2 . . Garrison . | . . . . . . . . . Intercept . | . . . . . . . . . Searches Triggered . | . . . . . . . . . Construction Impeded 1 | . . . . . 1 . . . Haulers Reinforced . | . . . . . . . . . Active Scanning Responses . | . . . . . . . . . Cargo Convoy Interrupts 1 | . . . . . . 1 . . Stealth | -11 -10 -9 -8 -8 -8 -7 -7 -7 --------- Run | Yrd Mat Mat Mat Gar Mat Fac Low Low Distress Signals 13 | . 2 6 2 . 1 2 . . Communications Jammed . | . . . . . . . . . Distress Signals . | . . . . . . . . . Times Spotted 268 | . 18 61 41 52 51 40 2 3 Peak Tracking Total 10 | . 4 5 5 6 10 5 1 3 Tactical Retreats 8 | . . 2 2 1 2 1 . . Traps | -11 -10 -9 -8 -8 -8 -7 -7 -7 ------- Run | Yrd Mat Mat Mat Gar Mat Fac Low Low Traps Triggered 10 | . 2 1 1 2 3 1 . . Indirectly . | . . . . . . . . . Trap Hack Attempts . | . . . . . . . . . Triggered . | . . . . . . . . . Disarmed . | . . . . . . . . . Reprogrammed . | . . . . . . . . . Reused . | . . . . . . . . . Traps Extracted . | . . . . . . . . . Installed . | . . . . . . . . . Triggered . | . . . . . . . . . Objects Rigged 3 | . . . 3 . . . . . Exploded 1 | . . . 1 . . . . . Machines | -11 -10 -9 -8 -8 -8 -7 -7 -7 ---------- Run | Yrd Mat Mat Mat Gar Mat Fac Low Low Machines Disabled 23 | . . . 5 10 1 6 . 1 Max in Single Turn 2 | . . . 2 2 . 2 . 1 Garrison Relay 3 | . . . . 3 . . . . Phase Generator 1 | . . . . 1 . . . . Machines Repaired . | . . . . . . . . . Machines Dismantled . | . . . . . . . . . Machines Sabotaged . | . . . . . . . . . Overloaded Fab Kills . | . . . . . . . . . Hacking | -11 -10 -9 -8 -8 -8 -7 -7 -7 --------- Run | Yrd Mat Mat Mat Gar Mat Fac Low Low Machines Accessed 41 | . 7 13 11 3 2 5 . . Terminals 30 | . 6 10 7 3 2 2 . . Fabricators . | . . . . . . . . . Repair Stations 3 | . . 1 1 . . 1 . . Recycling Units 7 | . 1 2 2 . . 2 . . Scanalyzers . | . . . . . . . . . Garrison Access 1 | . . . 1 . . . . . Total Hacks 128 | . 17 48 39 8 5 11 . . Successful 62 | . 6 20 26 4 3 3 . . Failed 64 | . 11 27 12 4 2 8 . . Catastrophic 13 | . 2 6 1 2 . 2 . . Database Lockouts 2 | . . 1 1 . . . . . Manual 50 | . 1 17 21 3 4 4 . . Terminals 99 | . 15 37 29 8 5 5 . . Fabricators . | . . . . . . . . . Repair Stations 8 | . . 4 3 . . 1 . . Recycling Units 18 | . 2 7 4 . . 5 . . Scanalyzers . | . . . . . . . . . Garrison Access 3 | . . . 3 . . . . . Terminal Hacks 38 | . 4 14 13 3 3 1 . . Part Schematic 2 | . . 1 1 . . . . . Robot Analysis 4 | . 1 1 2 . . . . . Prototype ID Bank 8 | . . 4 3 . . 1 . . Open Door 1 | . . . . 1 . . . . Branch Access Points 3 | . . 1 1 . 1 . . . Emergency Access Points 1 | . . . . 1 . . . . Terminal Index 1 | . . . 1 . . . . . Alert Level 1 | . . . . . 1 . . . Unreport Threat 5 | . 1 3 . . 1 . . . Locate Traps 1 | . . . 1 . . . . . Maintenance Status 1 | . . 1 . . . . . . Hauler Manifests 4 | . 1 1 2 . . . . . Registered Components 1 | . . 1 . . . . . . Zone Layout 4 | . 1 1 2 . . . . . Garrison Registry 1 | . . . . 1 . . . . Fabricator Hacks . | . . . . . . . . . Repair Station Hacks 4 | . . 2 2 . . . . . Scan Component 2 | . . 1 1 . . . . . Repair 2 | . . 1 1 . . . . . Recycling Unit Hacks 3 | . 1 1 1 . . . . . Retrieve Components 3 | . 1 1 1 . . . . . Scanalyzer . | . . . . . . . . . Garrison Access Hacks 1 | . . . 1 . . . . . Unlock Access 1 | . . . 1 . . . . . Unauthorized Hacks 16 | . 1 3 9 1 . 2 . . Terminals 9 | . 1 1 6 1 . . . . Track 5 | . 1 1 2 1 . . . . Botnet 2 | . . . 2 . . . . . Detonate 1 | . . . 1 . . . . . Operators 1 | . . . 1 . . . . . Fabricators . | . . . . . . . . . Repair Stations 3 | . . 1 1 . . 1 . . Patch 3 | . . 1 1 . . 1 . . Recycling Units 4 | . . 1 2 . . 1 . . Reject 1 | . . . . . . 1 . . Tunnel 3 | . . 1 2 . . . . . Scanalyzers . | . . . . . . . . . Garrison Access . | . . . . . . . . . Data Cores Recovered 2 | . . 1 1 . . . . . Used 1 | . . . 1 . . . . . Hacking Detections 37 | . 7 12 10 2 2 4 . . Full Trace Events 4 | . 1 1 . . . 2 . . Feedback Events . | . . . . . . . . . Feedback Blocked . | . . . . . . . . . Robot Schematics Acquired . | . . . . . . . . . Robots Built . | . . . . . . . . . Authchips . | . . . . . . . . . Time . | . . . . . . . . . Total Robot Build Rating . | . . . . . . . . . Part Schematics Acquired 2 | . . 1 1 . . . . . Parts Built . | . . . . . . . . . Authchips . | . . . . . . . . . Time . | . . . . . . . . . Total Part Build Rating . | . . . . . . . . . Parts Repaired 2 | . . 1 1 . . . . . Time 77 | . . 26 51 . . . . . Parts Recycled . | . . . . . . . . . Recycled Matter . | . . . . . . . . . Retrieved Matter . | . . . . . . . . . Retrieved Components 22 | . 10 9 3 . . . . . Parts Scanalyzed . | . . . . . . . . . Part Schematics Acquired . | . . . . . . . . . Parts Damaged . | . . . . . . . . . Bothacking | -11 -10 -9 -8 -8 -8 -7 -7 -7 ------------ Run | Yrd Mat Mat Mat Gar Mat Fac Low Low Used RIF Installer . | . . . . . . . . . Robots Hacked . | . . . . . . . . . Non-combat . | . . . . . . . . . Combat . | . . . . . . . . . Robot Hacks Applied . | . . . . . . . . . Relay Couplers Released 11 | . . . . 11 . . . . Machine Destruction 11 | . . . . 11 . . . . Fabnet Peak Effective % . | . . . . . . . . . Robots Rewired 3 | . . . . 3 . . . . Allies Hacked . | . . . . . . . . . Hacks Repelled . | . . . . . . . . . Allies | -11 -10 -9 -8 -8 -8 -7 -7 -7 -------- Run | Yrd Mat Mat Mat Gar Mat Fac Low Low Total Allies 5 | . . . . 5 . . . . Largest Group 3 | . . . . 3 2 . . . Highest-Rated Group 62 | . . . . 62 62 . . . Highest-Rated Ally 31 | . . . . 31 31 . . . Initial Warlord ECA Mod 29 | . . . . . 8 7 7 7 Total Orders 1 | . . . . . . 1 . . EXPLORE 1 | . . . . . . 1 . . Ally Attacks 68 | . . . . 54 14 . . . Total Damage 1079 | . . . . 849 230 . . . Kills 11 | . . . . 9 2 . . . Allies Corrupted . | . . . . . . . . . Allies Melted . | . . . . . . . . . Intel | -11 -10 -9 -8 -8 -8 -7 -7 -7 ------- Run | Yrd Mat Mat Mat Gar Mat Fac Low Low Active Infowar (turns) 9344 | 44 1646 3037 35 1282 . 1881 1202 217 Sensors 1405 | . . . . . . . 1188 217 IFF 2083 | . . . . 1282 . 801 . . Structural 1968 | . . 1933 35 . . . . . Seismic 2794 | 44 1646 1104 . . . . . . T.N.C. 1201 | . . . . . . 1187 14 . Machine Analysis 694 | . . . . . . 694 . . Robot Analysis Total 4 | . 1 1 2 . . . . . Derelict Logs Recovered 3 | . . . . . . . 2 1 Drone Launches 2 | . . . . . . 2 . . Drone Recoveries 1 | . . . . . . 1 . . Exploration | -11 -10 -9 -8 -8 -8 -7 -7 -7 ------------- Run | Yrd Mat Mat Mat Gar Mat Fac Low Low Turns Passed 13269 | 138 1646 3038 1383 2463 1299 1882 1203 217 Spaces Moved 6322 | 76 810 1411 585 1217 583 905 599 136 Core 4 | 4 . . . . . . . . Treads 5293 | . 769 1119 585 1217 583 905 115 . Legs 405 | 72 41 292 . . . . . . Wheels 620 | . . . . . . . 484 136 Hover . | . . . . . . . . . Flight . | . . . . . . . . . Fastest Speed 50 | 50 120 120 160 160 156 145 140 140 Average Speed 161 | 119 157 164 160 160 161 153 182 140 Slowest Speed 312 | 190 160 240 160 160 240 235 312 140 Overloaded Moves . | . . . . . . . . . Propulsion Burnouts . | . . . . . . . . . Robots Hopped . | . . . . . . . . . Potential Cave-ins . | . . . . . . . . . Cave-ins Triggered . | . . . . . . . . . Exploration Rate (%) 56 | 4 94 97 52 91 54 20 80 18 Regions Visited 8 Branch Regions 2 Pre-discovered Areas 4 | . . 1 2 . . . 1 . Known Exits Taken 3 | . . . 1 . . 1 1 . Unknown Exits Taken 4 | 1 1 1 . . 1 . . . Scrap Searched 5 | . . . . . . . 3 2 Spaces Dug 68 | . . . . 8 . 4 3 53 Terrain Destroyed 331 | . . 3 45 88 27 83 11 74 Melee 4 | . . . . . . 4 . . Projectile 32 | . . 3 . . . 15 11 3 AOE 295 | . . . 45 88 27 64 . 71 Terrain Rammed . | . . . . . . . . . Walls Destroyed . | . . . . . . . . . Machines Disabled . | . . . . . . . . . Actions | -11 -10 -9 -8 -8 -8 -7 -7 -7 --------- Run | Yrd Mat Mat Mat Gar Mat Fac Low Low Total 8081 | 100 1058 1832 846 1483 761 1197 655 149 Wait 601 | . 162 147 110 55 10 104 11 2 Move 6314 | 75 809 1410 585 1215 582 904 598 136 Hop . | . . . . . . . . . Pick Up 100 | 5 12 28 9 9 13 20 4 . Fast Attach 60 | 7 . 15 3 3 17 8 6 1 Attach 47 | . 1 11 4 9 8 11 3 . Detach 6 | . . 1 . 1 1 2 1 . Swap 114 | 1 4 19 16 27 14 29 2 2 Drop 124 | 1 3 39 20 11 22 22 5 1 Fire 646 | 11 66 161 99 113 93 71 25 7 Melee 44 | . . . . 17 1 26 . . Ram . | . . . . . . . . . Kick . | . . . . . . . . . Crush 2 | . 1 1 . . . . . . Escape Stasis 1 | . . . . 1 . . . . Rewire 22 | . . . . 22 . . . . Trap . | . . . . . . . . . Miscellaneous . | . . . . . . . . . Route ------- -11/Scrapyard -10/Materials (discovered 4 exits: *Mat x3 / [*Min]) -9/Materials (discovered 4 exits: *Mat x3 / *Min) -8/Materials (discovered 2 exits: *Fac / Gar) -8/Garrison (discovered 4 exits: *Mat x4) -8/Materials -7/Factory -7/Lower Caves -7/Lower Caves (discovered 1 exit: [*Fac]) History --------- Turn | Location | Event 13 | -11/Scrapyard | Discovered new exit (range 15) 139 | -11/Scrapyard | Entered Materials 302 | -10/Materials | Build established: Mutant 347 | -10/Materials | Discovered new exit (range 10) 544 | -10/Materials | Discovered new exit (range 15) 720 | -10/Materials | Discovered new exit (range 8) 1394 | -10/Materials | Discovered new exit (range 10) 1785 | -10/Materials | Entered another Materials area 1785 | -9/Materials | Evolved 2 slots: Propulsion x1, Utility x1 1809 | -9/Materials | Identified exit to Mines 2109 | -9/Materials | Lost 3 parts (2n1u) 2406 | -9/Materials | Build established: Scavenger-Mutant 3015 | -9/Materials | Repaired Lgt. Treads 3229 | -9/Materials | Core integrity fell below 50% 3335 | -9/Materials | Discovered new exit (range 15) 3825 | -9/Materials | Discovered new exit (range 16) 4230 | -9/Materials | Central database locked down 4339 | -9/Materials | Discovered new exit (range 16) 4823 | -9/Materials | Entered another Materials area 4823 | -8/Materials | Evolved 2 slots: Propulsion x1, Utility x1 5378 | -8/Materials | Repaired Imp. Assault Rifle 5735 | -8/Materials | Build established: Mutant 5983 | -8/Materials | Central database locked down 5988 | -8/Materials | Discovered new exit (range 8) 6206 | -8/Materials | Identified exit to Garrison 6206 | -8/Materials | Entered Garrison 6262 | -8/Garrison | Triggered checkpoint 6385 | -8/Garrison | Triggered checkpoint 6766 | -8/Garrison | Triggered checkpoint 6808 | -8/Garrison | Triggered checkpoint 6900 | -8/Garrison | Triggered checkpoint 6936 | -8/Garrison | Garrison Relay disabled 7012 | -8/Garrison | Lost 3 parts (1p2u) 7208 | -8/Garrison | Build established: Scavenger-Mutant 7288 | -8/Garrison | Discovered new exit (range 12) 7333 | -8/Garrison | Phase Generator disabled 7377 | -8/Garrison | Garrison Relay disabled 7612 | -8/Garrison | Triggered checkpoint 7623 | -8/Garrison | Discovered new exit (range 30) 7623 | -8/Garrison | Discovered new exit (range 80) 7623 | -8/Garrison | Discovered new exit (range 23) 7623 | -8/Garrison | Discovered new exit (range 48) 7996 | -8/Garrison | Rescued a captive Derelict 7997 | -8/Garrison | Rescued a captive Derelict 8024 | -8/Garrison | Triggered checkpoint 8185 | -8/Garrison | Triggered checkpoint 8214 | -8/Garrison | Triggered checkpoint 8536 | -8/Garrison | Attempted to access garrison exit controls, blocked by remote lockdown 8573 | -8/Garrison | Triggered checkpoint 8618 | -8/Garrison | Triggered checkpoint 8669 | -8/Garrison | Entered Materials 8669 | -8/Materials | Accompanied by 2 allies 9069 | -8/Materials | First assault squad dispatched 9232 | -8/Materials | Destroyed 8 combat bots 9613 | -8/Materials | Lost 3 parts (1p1n1u) 9924 | -8/Materials | Discovered new exit (range 10) 9968 | -8/Materials | Entered Factory 9968 | -7/Factory | Evolved 2 slots: Utility x1, Weapon x1 10251 | -7/Factory | Build established: Scavenger-Tank 10768 | -7/Factory | First assault squad dispatched 11054 | -7/Factory | Cargo convoy interrupted 11314 | -7/Factory | System corruption reached 10% 11524 | -7/Factory | Lost 3 parts (1n1u1w) 11730 | -7/Factory | Discovered new exit (range 18) 11824 | -7/Factory | Identified exit to Lower Caves 11850 | -7/Factory | Entered Lower Caves 12049 | -7/Lower Caves | Met a Warlord Commander 12050 | -7/Lower Caves | Learned location of Warlord (-4) 12051 | -7/Lower Caves | Warlord Commander delivered Encrypted Comm Array 12054 | -7/Lower Caves | Found Encrypted Comm Array 12074 | -7/Lower Caves | Found Alien Artifact 12074 | -7/Lower Caves | Identified Core Expander 12074 | -7/Lower Caves | Installed Core Expander, added new Weapon slot 12194 | -7/Lower Caves | Build established: Scavenger-Skirmisher 12574 | -7/Lower Caves | Encountered a Warlord checkpoint 12934 | -7/Lower Caves | Discovered new exit (range 10) 12957 | -7/Lower Caves | Learned location of 1 exit from Factory 13052 | -7/Lower Caves | Identified exit to Lower Caves 13053 | -7/Lower Caves | Entered another Lower Caves area 13106 | -7/Lower Caves | Learned Factory emergency access door positions 13132 | -7/Lower Caves | Discovered new exit (range 4) 13270 | -7/Lower Caves | Self-destructed Last Messages --------------- 13169_ System corrupted: Energy discharge (-60). 13191_ System corrupted: Energy discharge (-116). 13206_ V6T SELM#AGF=> 13264_ Destroyed Cesium-ion Thruster. 13264_ Hvy. Battle Rifle ripped off. 13266_ Lgt. Treads ripped off. 13267_ Adv. Treads ripped off. 13267_ Wheel destroyed. 13267_ Destroyed Wheel. 13267_ Wheel destroyed. 13267_ Destroyed Wheel. 13267_ BB-VYE(f) destroyed. 13267_ AT-19V(f) destroyed. 13268_ The unstable cave ceiling collapses. Map ----- +----------------------------------------------------+ | ?????????????????????????????????????????????????? | | ?????????????????????????????????????????????????? | | ?????????????????????????????????????????????????? | | ?????????????????????????????????????????????????? | | ?????????????????????????????????????????????????? | | ?????????????????????????????????????????????????? | | ?????????????????????????????????????????????????? | | ????###??????????????????????????????????????????? | | ???## #??#####????#####????#########????????????? | | ??## ### ##??## ###### %! ##???????##??? | | ## #### []%! ##### ##?? | | ## /### #?? | | ## ### #??? | | ## """ "" ### < ######??? | | ### """ """ ## ## ##???????? | | ### ### ;## """ """ ## #?# #????????? | | ???#####?# ##f# ## " " ### #########?????? | | ?????????# ##; # """"" #?# ##??# ###???? | | ????????? ### # """"" #### #?## ###?? | | ???????? #?### # """ #?## ### ##? | | ??????? #???# # ??## ### #? | | ?????? ##??## ## # ###### ### #? | | ?????## #####??## ##?# # # #? | | ??????###???????# ### # # ## ##? | | ????????????????# ## #^ # # ##?#?? | | ????????????????# =@ ## ### ##??? | | ????????????????### ## ## #^ ##?? | | ??????????????????# # # ### | | ????????????? # # # | | ?????????????## ## # ## | | ????????????# ####?###### #### ## | | ????????????# # #?????????## #??## # | | ????????????## ###??????????###???## # | | ?????????????#" ???????????????????# ## | | ?????????????" ???????????????????# #? | | ??????????????! ????????????###????# #? | | ?????????????? # #???????????## ##???# #? | | ???????????????? ????????##### ##??# #? | | ???????????????? ????????# ## ##?# #? | | ????????????????? ????????# ### #? | | ???????????????????? ??? ### #? | | ?????????????????????? ????? ???## #? | | ???????????????????????????#######?????## ######? | | ???????????????????????????????????????# ##?????? | | ???????????????????????????????????????####??????? | | ?????????????????????????????????????????????????? | | ?????????????????????????????????????????????????? | | ?????????????????????????????????????????????????? | | ?????????????????????????????????????????????????? | | ?????????????????????????????????????????????????? | +----------------------------------------------------+ Best States ------------- Heat Dissipation 53 Coolant Potential 65 Energy Generation 18 Energy Capacity 290 Matter Stores 450 Matter Capacity 450 Sight Range 16 Robot Scan Range 15 Terrain Scan Density 10 Armor Coverage 375 Resistance: TH 30 Core Shielding 20 Evasion (%) 55 Targeting Accuracy 8 Core Analysis 6 Recoil Reduction 4 Offensive Hacking 10 Item Schematics ----------------- Hcp. Storage Unit | -9/Materials | Hacked Hrd. Medium Armor Plating | -8/Materials | Hacked Robot Schematics ------------------ None Fabricated ------------ Nothing Repaired ---------- Lgt. Treads | 65% | -9/Materials Imp. Assault Rifle | 13% | -8/Materials Alien Tech Used ----------------- Core Expander Achievements -------------- None Challenges ------------ None Game ------ Seed RiotMachineHumpback Manual? 0 Play Time 01:24:05 Cumulative 724.5 hours Start 2025.10.20 @ 21:13:47 End 2025.10.20 @ 22:44:06 Sessions 1 Manual Loads 0 Difficulty Rogue Special Mode None Game No. 456 Rogue 456 Adventurer 0 Explorer 0 Win Type - Total 10 Types 7/0/1/1/1/0/0/0/0/0 Lore% 76 Gallery% 79 Achievement% 76 Wizard Run 0 Options --------- Layout 0 ASCII 0 Keyboard 0 Movement Mouse Keybinds 1 Fullscreen 2 Font 24/Smallcaps Map View 76x50 Zoom Use 0% Tactical HUD 1 Map Filters NONE Filters NONE Steam 1 RUN: df1e127d-a468-4042-9e7a-599fa2c78d6f